Workbook

Sheet RBP genes with mutation
A1: Gene name | B1: Mutated samples | C1: Samples tested | D1: frequency
A2: SMAD4 | B2: 275 | C2: 2140 | D2: =B2/C2 -> 0.1285046729
A3: PRKDC | B3: 102 | C3: 876 | D3: 0.1164383562
A4: DYNC1H1 | B4: 85 | C4: 807 | D4: 0.1053283767
A5: TPR | B5: 87 | C5: 936 | D5: 0.09294871795
A6: ARHGEF28 | B6: 71 | C6: 798 | D6: 0.08897243108
A7: AFF2 | B7: 70 | C7: 807 | D7: 0.08674101611
A8: SRRM4 | B8: 70 | C8: 807 | D8: 0.08674101611
A9: RBMS3 | B9: 68 | C9: 807 | D9: 0.08426270136
A10: CNOT1 | B10: 67 | C10: 807 | D10: 0.08302354399
A11: AFF1 | B11: 71 | C11: 883 | D11: 0.08040770102
A12: TNRC6B | B12: 63 | C12: 807 | D12: 0.0780669145
A13: ASH1L | B13: 63 | C13: 807 | D13: 0.0780669145
A14: ATXN1 | B14: 62 | C14: 807 | D14: 0.07682775713
A15: ZC3H13 | B15: 61 | C15: 807 | D15: 0.07558859975
A16: TCERG1 | B16: 61 | C16: 826 | D16: 0.07384987893
A17: RBM33 | B17: 58 | C17: 798 | D17: 0.07268170426
A18: RALYL | B18: 58 | C18: 798 | D18: 0.07268170426
A19: SRRM2 | B19: 58 | C19: 807 | D19: 0.07187112763
A20: HELZ2 | B20: 58 | C20: 807 | D20: 0.07187112763
A21: SMG1 | B21: 57 | C21: 807 | D21: 0.07063197026
A22: R3HDM1 | B22: 56 | C22: 807 | D22: 0.06939281289
A23: MSI2 | B23: 54 | C23: 810 | D23: 0.06666666667
A24: INTS1 | B24: 53 | C24: 798 | D24: 0.0664160401
A25: SPEN | B25: 97 | C25: 1466 | D25: 0.06616643929
A26: SETX | B26: 53 | C26: 807 | D26: 0.06567534077
A27: UTP20 | B27: 53 | C27: 824 | D27: 0.06432038835
A28: LARS | B28: 51 | C28: 807 | D28: 0.06319702602
A29: SON | B29: 51 | C29: 807 | D29: 0.06319702602
A30: SNRNP200 | B30: 52 | C30: 824 | D30: 0.06310679612
A31: POLRMT | B31: 50 | C31: 807 | D31: 0.06195786865
A32: ZNF106 | B32: 50 | C32: 807 | D32: 0.06195786865
A33: ANKHD1 | B33: 50 | C33: 807 | D33: 0.06195786865
A34: PRPF8 | B34: 50 | C34: 807 | D34: 0.06195786865
A35: TEP1 | B35: 50 | C35: 807 | D35: 0.06195786865
A36: AFF3 | B36: 53 | C36: 866 | D36: 0.06120092379
A37: MOV10L1 | B37: 49 | C37: 807 | D37: 0.06071871128
A38: DZIP1 | B38: 49 | C38: 807 | D38: 0.06071871128
A39: MRPS22 | B39: 49 | C39: 807 | D39: 0.06071871128
A40: TNRC6A | B40: 49 | C40: 807 | D40: 0.06071871128
A41: NYNRIN | B41: 47 | C41: 798 | D41: 0.05889724311
A42: HDLBP | B42: 48 | C42: 824 | D42: 0.05825242718
A43: HEATR1 | B43: 47 | C43: 807 | D43: 0.05824039653
A44: SETD1A | B44: 47 | C44: 807 | D44: 0.05824039653
A45: SND1 | B45: 47 | C45: 807 | D45: 0.05824039653
A46: QKI | B46: 48 | C46: 826 | D46: 0.05811138015
A47: CPSF1 | B47: 46 | C47: 807 | D47: 0.05700123916
A48: RANBP2 | B48: 46 | C48: 807 | D48: 0.05700123916
A49: BCLAF1 | B49: 46 | C49: 807 | D49: 0.05700123916
A50: SCAF4 | B50: 46 | C50: 807 | D50: 0.05700123916
A51: RBMXL3 | B51: 45 | C51: 798 | D51: 0.05639097744
A52: ZFP36L2 | B52: 45 | C52: 807 | D52: 0.05576208178
A53: PHRF1 | B53: 44 | C53: 807 | D53: 0.05452292441
A54: DHX34 | B54: 44 | C54: 807 | D54: 0.05452292441
A55: DHX30 | B55: 44 | C55: 807 | D55: 0.05452292441
A56: EIF4G1 | B56: 44 | C56: 824 | D56: 0.05339805825
A57: ANKRD17 | B57: 43 | C57: 807 | D57: 0.05328376704
A58: TARBP1 | B58: 43 | C58: 807 | D58: 0.05328376704
A59: LARP1 | B59: 43 | C59: 807 | D59: 0.05328376704
A60: MRPS6 | B60: 43 | C60: 807 | D60: 0.05328376704
A61: ESRP1 | B61: 43 | C61: 807 | D61: 0.05328376704
A62: XAB2 | B62: 43 | C62: 821 | D62: 0.05237515225
A63: LRRFIP1 | B63: 43 | C63: 824 | D63: 0.05218446602
A64: LARP4B | B64: 42 | C64: 807 | D64: 0.05204460967
A65: YTHDC2 | B65: 42 | C65: 807 | D65: 0.05204460967
A66: ATXN2L | B66: 42 | C66: 807 | D66: =B66/C66 -> 0.05204460967
A67: SCAF11 | B67: 42 | C67: 807 | D67: 0.05204460967
A68: SLTM | B68: 42 | C68: 807 | D68: 0.05204460967
A69: ZNFX1 | B69: 41 | C69: 798 | D69: 0.05137844612
A70: JAKMIP1 | B70: 42 | C70: 824 | D70: 0.05097087379
A71: NXF3 | B71: 41 | C71: 807 | D71: 0.05080545229
A72: EIF3A | B72: 41 | C72: 807 | D72: 0.05080545229
A73: HBS1L | B73: 41 | C73: 807 | D73: 0.05080545229
A74: DHX15 | B74: 41 | C74: 807 | D74: 0.05080545229
A75: SETD1B | B75: 40 | C75: 798 | D75: 0.05012531328
A76: DHX37 | B76: 40 | C76: 807 | D76: 0.04956629492
A77: LARP4 | B77: 40 | C77: 807 | D77: 0.04956629492
A78: BAZ2A | B78: 40 | C78: 807 | D78: 0.04956629492
A79: NOL8 | B79: 39 | C79: 798 | D79: 0.04887218045
A80: RBM27 | B80: 39 | C80: 798 | D80: 0.04887218045
A81: PDCD11 | B81: 40 | C81: 821 | D81: 0.04872107186
A82: TDRD6 | B82: 40 | C82: 821 | D82: 0.04872107186
A83: PABPC5 | B83: 39 | C83: 807 | D83: 0.04832713755
A84: ZFR | B84: 39 | C84: 807 | D84: 0.04832713755
A85: URB2 | B85: 39 | C85: 807 | D85: 0.04832713755
A86: SART3 | B86: 39 | C86: 807 | D86: 0.04832713755
A87: DROSHA | B87: 39 | C87: 810 | D87: 0.04814814815
A88: SMAD3 | B88: 72 | C88: 1505 | D88: 0.04784053156
A89: RBM20 | B89: 38 | C89: 798 | D89: 0.04761904762
A90: PCF11 | B90: 38 | C90: 807 | D90: 0.04708798017
A91: CHERP | B91: 38 | C91: 807 | D91: 0.04708798017
A92: EDC4 | B92: 38 | C92: 807 | D92: 0.04708798017
A93: RBMS1 | B93: 38 | C93: 807 | D93: 0.04708798017
A94: SCAF1 | B94: 37 | C94: 798 | D94: 0.04636591479
A95: NR0B1 | B95: 37 | C95: 807 | D95: 0.0458488228
A96: GFM1 | B96: 37 | C96: 807 | D96: 0.0458488228
A97: UPF2 | B97: 37 | C97: 807 | D97: 0.0458488228
A98: PARP4 | B98: 37 | C98: 817 | D98: 0.0452876377
A99: ZC3H18 | B99: 36 | C99: 798 | D99: 0.04511278195
A100: URB1 | B100: 36 | C100: 798 | D100: 0.04511278195
A101: ZFC3H1 | B101: 37 | C101: 821 | D101: 0.04506699147
A102: FXR1 | B102: 37 | C102: 824 | D102: 0.04490291262
A103: IPO8 | B103: 36 | C103: 807 | D103: 0.04460966543
A104: ZNF638 | B104: 36 | C104: 807 | D104: 0.04460966543
A105: HELZ | B105: 36 | C105: 807 | D105: 0.04460966543
A106: DARS2 | B106: 36 | C106: 807 | D106: 0.04460966543
A107: XRN1 | B107: 36 | C107: 807 | D107: 0.04460966543
A108: RNF17 | B108: 36 | C108: 807 | D108: 0.04460966543
A109: SMAD2 | B109: 88 | C109: 1984 | D109: 0.04435483871
A110: RBM15B | B110: 35 | C110: 798 | D110: 0.04385964912
A111: XPOT | B111: 35 | C111: 807 | D111: 0.04337050805
A112: RRBP1 | B112: 35 | C112: 807 | D112: 0.04337050805
A113: SRRM1 | B113: 35 | C113: 807 | D113: 0.04337050805
A114: IARS | B114: 35 | C114: 807 | D114: 0.04337050805
A115: SRFBP1 | B115: 35 | C115: 807 | D115: 0.04337050805
A116: DDX27 | B116: 35 | C116: 807 | D116: 0.04337050805
A117: PPRC1 | B117: 35 | C117: 807 | D117: 0.04337050805
A118: GEMIN5 | B118: 35 | C118: 807 | D118: 0.04337050805
A119: EIF4G3 | B119: 35 | C119: 807 | D119: 0.04337050805
A120: RC3H1 | B120: 35 | C120: 807 | D120: 0.04337050805
A121: RBM44 | B121: 34 | C121: 798 | D121: 0.04260651629
A122: HNRNPM | B122: 34 | C122: 798 | D122: 0.04260651629
A123: ADAR | B123: 35 | C123: 824 | D123: 0.04247572816
A124: DNMT1 | B124: 60 | C124: 1414 | D124: 0.04243281471
A125: PCBP3 | B125: 34 | C125: 807 | D125: 0.04213135068
A126: VARS | B126: 34 | C126: 807 | D126: 0.04213135068
A127: SFSWAP | B127: 34 | C127: 807 | D127: 0.04213135068
A128: EIF5B | B128: 34 | C128: 807 | D128: 0.04213135068
A129: PPARGC1A | B129: 34 | C129: 807 | D129: 0.04213135068
A130: SAFB2 | B130: 34 | C130: 807 | D130: =B130/C130 -> 0.04213135068
A131: PTBP2 | B131: 34 | C131: 807 | D131: 0.04213135068
A132: EIF2AK4 | B132: 34 | C132: 807 | D132: 0.04213135068
A133: GUF1 | B133: 34 | C133: 807 | D133: 0.04213135068
A134: ADARB1 | B134: 34 | C134: 807 | D134: 0.04213135068
A135: IPO11 | B135: 34 | C135: 807 | D135: 0.04213135068
A136: SUPT5H | B136: 34 | C136: 807 | D136: 0.04213135068
A137: LONP1 | B137: 34 | C137: 807 | D137: 0.04213135068
A138: CSDE1 | B138: 37 | C138: 883 | D138: 0.04190260476
A139: CCAR1 | B139: 34 | C139: 824 | D139: 0.04126213592
A140: HNRNPL | B140: 33 | C140: 807 | D140: 0.04089219331
A141: MEX3B | B141: 33 | C141: 807 | D141: 0.04089219331
A142: THRAP3 | B142: 33 | C142: 807 | D142: 0.04089219331
A143: DZIP1L | B143: 33 | C143: 807 | D143: 0.04089219331
A144: BAZ2B | B144: 33 | C144: 807 | D144: 0.04089219331
A145: LRPPRC | B145: 33 | C145: 807 | D145: 0.04089219331
A146: NUP153 | B146: 33 | C146: 807 | D146: 0.04089219331
A147: ERN1 | B147: 33 | C147: 807 | D147: 0.04089219331
A148: THOC2 | B148: 33 | C148: 807 | D148: 0.04089219331
A149: GPATCH8 | B149: 33 | C149: 807 | D149: 0.04089219331
A150: CELF4 | B150: 33 | C150: 807 | D150: 0.04089219331
A151: BICC1 | B151: 32 | C151: 798 | D151: 0.04010025063
A152: FUBP3 | B152: 32 | C152: 798 | D152: 0.04010025063
A153: TLR8 | B153: 33 | C153: 824 | D153: 0.04004854369
A154: RBBP6 | B154: 32 | C154: 807 | D154: 0.03965303594
A155: TRIM71 | B155: 32 | C155: 807 | D155: 0.03965303594
A156: DHX36 | B156: 32 | C156: 807 | D156: 0.03965303594
A157: RBFOX1 | B157: 32 | C157: 807 | D157: 0.03965303594
A158: PDE11A | B158: 32 | C158: 807 | D158: 0.03965303594
A159: ZC3H14 | B159: 32 | C159: 807 | D159: 0.03965303594
A160: CARS | B160: 32 | C160: 807 | D160: 0.03965303594
A161: UPF1 | B161: 32 | C161: 810 | D161: 0.03950617284
A162: XPO4 | B162: 32 | C162: 821 | D162: 0.03897685749
A163: U2SURP | B163: 31 | C163: 798 | D163: 0.03884711779
A164: RBMXL2 | B164: 31 | C164: 798 | D164: 0.03884711779
A165: PRPF6 | B165: 31 | C165: 798 | D165: 0.03884711779
A166: HNRNPUL2 | B166: 31 | C166: 798 | D166: 0.03884711779
A167: DDX60L | B167: 31 | C167: 798 | D167: 0.03884711779
A168: U2AF2 | B168: 31 | C168: 807 | D168: 0.03841387856
A169: CEBPZ | B169: 31 | C169: 807 | D169: 0.03841387856
A170: DHX16 | B170: 31 | C170: 807 | D170: 0.03841387856
A171: SUGP2 | B171: 31 | C171: 807 | D171: 0.03841387856
A172: EEF2 | B172: 31 | C172: 807 | D172: 0.03841387856
A173: SCAF8 | B173: 31 | C173: 807 | D173: 0.03841387856
A174: EPRS | B174: 31 | C174: 807 | D174: 0.03841387856
A175: CMSS1 | B175: 31 | C175: 807 | D175: 0.03841387856
A176: FMR1 | B176: 31 | C176: 807 | D176: 0.03841387856
A177: SYMPK | B177: 31 | C177: 807 | D177: 0.03841387856
A178: EEF1A2 | B178: 31 | C178: 807 | D178: 0.03841387856
A179: ILF3 | B179: 31 | C179: 807 | D179: 0.03841387856
A180: GTPBP4 | B180: 31 | C180: 807 | D180: 0.03841387856
A181: DHX57 | B181: 31 | C181: 807 | D181: 0.03841387856
A182: SMG6 | B182: 31 | C182: 807 | D182: 0.03841387856
A183: PIWIL1 | B183: 31 | C183: 807 | D183: 0.03841387856
A184: STRBP | B184: 31 | C184: 824 | D184: 0.03762135922
A185: TNRC6C | B185: 30 | C185: 798 | D185: 0.03759398496
A186: NOC2L | B186: 30 | C186: 807 | D186: 0.03717472119
A187: ZC3H7B | B187: 30 | C187: 807 | D187: 0.03717472119
A188: PTCD3 | B188: 30 | C188: 807 | D188: 0.03717472119
A189: CAPRIN2 | B189: 30 | C189: 807 | D189: 0.03717472119
A190: RBM12B | B190: 30 | C190: 807 | D190: 0.03717472119
A191: SF3B3 | B191: 30 | C191: 807 | D191: 0.03717472119
A192: DHX8 | B192: 30 | C192: 807 | D192: 0.03717472119
A193: RBM10 | B193: 53 | C193: 1430 | D193: 0.03706293706
A194: UTP14C | B194: 30 | C194: 821 | D194: =B194/C194 -> 0.0365408039
A195: ZFR2 | B195: 29 | C195: 798 | D195: 0.03634085213
A196: DDX58 | B196: 29 | C196: 798 | D196: 0.03634085213
A197: ZC3H4 | B197: 29 | C197: 798 | D197: 0.03634085213
A198: DDX54 | B198: 29 | C198: 807 | D198: 0.03593556382
A199: CWC22 | B199: 29 | C199: 807 | D199: 0.03593556382
A200: LARP7 | B200: 29 | C200: 807 | D200: 0.03593556382
... 1284 more rows

Sheet RBP genes without mutation
A1: Gene name | B1: Mutated samples | C1: Samples tested | D1: frequency
A2: SMN1 | B2: 0 | C2: 807 | D2: =B2/C2 -> 0
A3: GAR1 | B3: 0 | C3: 807 | D3: 0
A4: TRMT112 | B4: 0 | C4: 807 | D4: 0
A5: RPL36A | B5: 0 | C5: 807 | D5: 0
A6: RPS27 | B6: 0 | C6: 807 | D6: 0
A7: RPS14 | B7: 0 | C7: 807 | D7: 0
A8: RBMY1D | B8: 0 | C8: 798 | D8: 0
A9: RPS17 | B9: 0 | C9: 798 | D9: 0
A10: MRM1 | B10: 0 | C10: 798 | D10: 0
A11: RPS4Y1 | B11: 0 | C11: 798 | D11: 0
A12: RBMY1A1 | B12: 0 | C12: 798 | D12: 0
A13: MRPL45 | B13: 0 | C13: 798 | D13: 0
A14: DAZ3 | B14: 0 | C14: 798 | D14: 0
A15: RBMY1F | B15: 0 | C15: 798 | D15: 0
A16: POLR2J2 | B16: 0 | C16: 798 | D16: 0
A17: DDX52 | B17: 0 | C17: 798 | D17: 0
A18: DAZ1 | B18: 0 | C18: 798 | D18: 0
A19: DAZ2 | B19: 0 | C19: 798 | D19: 0
A20: RPS4Y2 | B20: 0 | C20: 798 | D20: 0
A21: EIF3CL | B21: 0 | C21: 798 | D21: 0
A22: RBMY1J | B22: 0 | C22: 798 | D22: 0
A23: TAF15 | B23: 0 | C23: 798 | D23: 0
A24: DAZ4 | B24: 0 | C24: 798 | D24: 0
A25: LSM7 | B25: 0 | C25: 798 | D25: 0
A26: CWC25 | B26: 0 | C26: 798 | D26: 0
A27: RDM1 | B27: 0 | C27: 798 | D27: 0
A28: RBMY1B | B28: 0 | C28: 798 | D28: 0

Sheet RBP genes undetected
A1: RBP genes undetected mutation
A2: KIAA0020
A3: FTSJ2
A4: UTP11L
A5: HRSP12
A6: GLTSCR2
A7: QTRTD1
A8: C17orf85
A9: LSMD1
A10: PTRF
A11: FAM46A
A12: METTL10
A13: VARSL
A14: NHP2L1
A15: ZRSR1
A16: ZCCHC5
A17: ICT1
A18: RQCD1
A19: PET112
A20: CPSF3L
A21: C9orf114
A22: PAPD4
A23: ZCCHC11
A24: ZCCHC6
A25: WIBG
A26: PAPD5
A27: PAPD7
A28: FAM103A1
A29: RPS17L
A30: SKIV2L2
A31: OBFC1
A32: EIF2S3L
A33: MEX3C
A34: NOL6
A35: AC004381.6
A36: DGCR14
A37: MRP63
A38: EFTUD1
A39: FRG1B
A40: CCRN4L
A41: MTERFD2
A42: SRPR
A43: DDX26B
A44: RNMTL1
A45: SF3B14
A46: CXorf23
A47: KIAA0430

Sheet without_mutationMon Jul 13 2020
A1: Gene name | B1: Mutated samples | C1: Samples tested
A2: BAP1_ENST00000615113 | B2: 0 | C2: 1521
A3: MYC_ENST00000641252 | B3: 0 | C3: 1505
A4: MAP3K13_ENST00000448876 | B4: 0 | C4: 1413
A5: MAP3K13_ENST00000438798 | B5: 0 | C5: 1413
A6: MAP3K13_ENST00000454237 | B6: 0 | C6: 1413
A7: ABRAXAS1_ENST00000515303 | B7: 0 | C7: 1395
A8: MGA_ENST00000619521 | B8: 0 | C8: 1395
A9: IKBKB_ENST00000518983 | B9: 0 | C9: 888
A10: CRBN_ENST00000629101 | B10: 0 | C10: 876
A11: FANCD2_ENST00000625535 | B11: 0 | C11: 876
A12: PBX1_ENST00000485769 | B12: 0 | C12: 866
A13: HIST2H3C | B13: 0 | C13: 861
A14: ZNF75A_ENST00000612186 | B14: 0 | C14: 824
A15: C12orf76_ENST00000546627 | B15: 0 | C15: 824
A16: C12orf76_ENST00000547573 | B16: 0 | C16: 824
A17: C12orf76_ENST00000549724 | B17: 0 | C17: 824
A18: FNDC3B_ENST00000421757 | B18: 0 | C18: 824
A19: FNDC3B_ENST00000423424 | B19: 0 | C19: 824
A20: ANKRD29_ENST00000585908 | B20: 0 | C20: 824
A21: FXR1_ENST00000491674 | B21: 0 | C21: 824
A22: C12orf76_ENST00000551185 | B22: 0 | C22: 824
A23: PDCD6_ENST00000509581 | B23: 0 | C23: 824
A24: BCAR1_ENST00000546196 | B24: 0 | C24: 824
A25: MFSD12_ENST00000615613 | B25: 0 | C25: 821
A26: CACNA1A_ENST00000592864 | B26: 0 | C26: 821
A27: AFMID_ENST00000589256 | B27: 0 | C27: 821
A28: KIF13A_ENST00000502704 | B28: 0 | C28: 821
A29: CFAP221_ENST00000598644 | B29: 0 | C29: 821
A30: AFMID_ENST00000586731 | B30: 0 | C30: 821
A31: ZNF568_ENST00000586353 | B31: 0 | C31: 821
A32: MUC2 | B32: 0 | C32: 821
A33: CUL4A_ENST00000488558 | B33: 0 | C33: 817
A34: AL662820.1 | B34: 0 | C34: 811
A35: PTP4A1_ENST00000578299 | B35: 0 | C35: 810
A36: PPIH_ENST00000372549 | B36: 0 | C36: 807
A37: TRMT112_ENST00000535126 | B37: 0 | C37: 807
A38: BLOC1S3_ENST00000587722 | B38: 0 | C38: 807
A39: PLD1_ENST00000331659 | B39: 0 | C39: 807
A40: CKMT1B_ENST00000627381 | B40: 0 | C40: 807
A41: PCGF3_ENST00000620529 | B41: 0 | C41: 807
A42: RGR_ENST00000372092 | B42: 0 | C42: 807
A43: CITED4 | B43: 0 | C43: 807
A44: TIMM10_ENST00000525158 | B44: 0 | C44: 807
A45: TARS_ENST00000626210 | B45: 0 | C45: 807
A46: HTR4_ENST00000520086 | B46: 0 | C46: 807
A47: NXT2_ENST00000372103 | B47: 0 | C47: 807
A48: RIC8A_ENST00000626818 | B48: 0 | C48: 807
A49: CCL22 | B49: 0 | C49: 807
A50: HMGN2_ENST00000619352 | B50: 0 | C50: 807
A51: CHD2_ENST00000627622 | B51: 0 | C51: 807
A52: GNG2_ENST00000555472 | B52: 0 | C52: 807
A53: CYCS_ENST00000409409 | B53: 0 | C53: 807
A54: STXBP1_ENST00000476182 | B54: 0 | C54: 807
A55: NOP2_ENST00000545915 | B55: 0 | C55: 807
A56: GLDC_ENST00000640208 | B56: 0 | C56: 807
A57: ZNF468_ENST00000396409 | B57: 0 | C57: 807
A58: CBWD3_ENST00000616550 | B58: 0 | C58: 807
A59: NAV1_ENST00000593583 | B59: 0 | C59: 807
A60: MCF2L_ENST00000397036 | B60: 0 | C60: 807
A61: PNRC2_ENST00000374468 | B61: 0 | C61: 807
A62: CYP19A1_ENST00000613097 | B62: 0 | C62: 807
A63: SSBP4_ENST00000625926 | B63: 0 | C63: 807
A64: ALG11_ENST00000616513 | B64: 0 | C64: 807
A65: SMN1 | B65: 0 | C65: 807
A66: CRYZL1_ENST00000399442 | B66: 0 | C66: 807
A67: OARD1_ENST00000471367 | B67: 0 | C67: 807
A68: SAR1B_ENST00000509937 | B68: 0 | C68: 807
A69: MAP2K3_ENST00000627447 | B69: 0 | C69: 807
A70: OLFM1_ENST00000371801 | B70: 0 | C70: 807
A71: SETD7_ENST00000608958 | B71: 0 | C71: 807
A72: COX7C_ENST00000247655 | B72: 0 | C72: 807
A73: TIMM10 | B73: 0 | C73: 807
A74: HES2 | B74: 0 | C74: 807
A75: SAR1B_ENST00000502539 | B75: 0 | C75: 807
A76: SPDYE2 | B76: 0 | C76: 807
A77: GNG10 | B77: 0 | C77: 807
A78: VMAC | B78: 0 | C78: 807
A79: RPL36A_ENST00000392994 | B79: 0 | C79: 807
A80: CTF1 | B80: 0 | C80: 807
A81: SPDYE2_ENST00000341656 | B81: 0 | C81: 807
A82: RIN3_ENST00000557762 | B82: 0 | C82: 807
A83: GHRL_ENST00000446937 | B83: 0 | C83: 807
A84: CIP2A_ENST00000625495 | B84: 0 | C84: 807
A85: FKBP4_ENST00000630279 | B85: 0 | C85: 807
A86: GHRL_ENST00000457360 | B86: 0 | C86: 807
A87: CAPZA2_ENST00000639546 | B87: 0 | C87: 807
A88: SLC2A10_ENST00000486000 | B88: 0 | C88: 807
A89: SPHAR | B89: 0 | C89: 807
A90: RABL2B_ENST00000395590 | B90: 0 | C90: 807
A91: IL36B_ENST00000327407 | B91: 0 | C91: 807
A92: HAUS2_ENST00000568846 | B92: 0 | C92: 807
A93: DDT_ENST00000403754 | B93: 0 | C93: 807
A94: SMN1_ENST00000503079 | B94: 0 | C94: 807
A95: TNFRSF12A | B95: 0 | C95: 807
A96: ZNF585A_ENST00000588354 | B96: 0 | C96: 807
A97: KAZN_ENST00000636564 | B97: 0 | C97: 807
A98: IFNA1 | B98: 0 | C98: 807
A99: SLC4A1_ENST00000631130 | B99: 0 | C99: 807
A100: CLK4_ENST00000520957 | B100: 0 | C100: 807
A101: SSH2_ENST00000590153 | B101: 0 | C101: 807
A102: RPS14_ENST00000312037 | B102: 0 | C102: 807
A103: ELP4_ENST00000638764 | B103: 0 | C103: 807
A104: RPS29_ENST00000554075 | B104: 0 | C104: 807
A105: SSH2_ENST00000582084 | B105: 0 | C105: 807
A106: SSH2_ENST00000579954 | B106: 0 | C106: 807
A107: ERH_ENST00000555373 | B107: 0 | C107: 807
A108: PARVG_ENST00000466375 | B108: 0 | C108: 807
A109: PDZRN3_ENST00000308537 | B109: 0 | C109: 807
A110: GANC_ENST00000440615 | B110: 0 | C110: 807
A111: ABCC3_ENST00000515707 | B111: 0 | C111: 807
A112: TRNT1_ENST00000402675 | B112: 0 | C112: 807
A113: AK2_ENST00000626911 | B113: 0 | C113: 807
A114: COQ4_ENST00000609948 | B114: 0 | C114: 807
A115: ZCCHC10_ENST00000504170 | B115: 0 | C115: 807
A116: FBXL8_ENST00000518148 | B116: 0 | C116: 807
A117: FBXL8_ENST00000521920 | B117: 0 | C117: 807
A118: DFFB_ENST00000625756 | B118: 0 | C118: 807
A119: VPS35_ENST00000640313 | B119: 0 | C119: 807
A120: VGLL4_ENST00000638314 | B120: 0 | C120: 807
A121: CTXN1 | B121: 0 | C121: 807
A122: HAUS2_ENST00000568876 | B122: 0 | C122: 807
A123: CKMT1A_ENST00000626814 | B123: 0 | C123: 807
A124: GNG2_ENST00000557376 | B124: 0 | C124: 807
A125: GAR1 | B125: 0 | C125: 807
A126: DIAPH1_ENST00000468119 | B126: 0 | C126: 807
A127: LUC7L3_ENST00000625349 | B127: 0 | C127: 807
A128: GAR1_ENST00000394631 | B128: 0 | C128: 807
A129: NUPL2_ENST00000548367 | B129: 0 | C129: 807
A130: SPTSSB_ENST00000617024 | B130: 0 | C130: 807
A131: FOXD4L4 | B131: 0 | C131: 807
A132: HSD17B7_ENST00000367915 | B132: 0 | C132: 807
A133: GHRL_ENST00000429122 | B133: 0 | C133: 807
A134: LGALSL | B134: 0 | C134: 807
A135: SPINK1_ENST00000510027 | B135: 0 | C135: 807
A136: PDE6G_ENST00000571224 | B136: 0 | C136: 807
A137: MMAB_ENST00000537236 | B137: 0 | C137: 807
A138: RPGRIP1L_ENST00000568653 | B138: 0 | C138: 807
A139: AC135068.1 | B139: 0 | C139: 807
A140: MYCBPAP_ENST00000419930 | B140: 0 | C140: 807
A141: SLF2_ENST00000609386 | B141: 0 | C141: 807
A142: GNG2_ENST00000556766 | B142: 0 | C142: 807
A143: ILK_ENST00000627400 | B143: 0 | C143: 807
A144: KLHDC4_ENST00000446344 | B144: 0 | C144: 807
A145: COQ4_ENST00000608951 | B145: 0 | C145: 807
A146: RBM43_ENST00000409092 | B146: 0 | C146: 807
A147: SMN1_ENST00000506163 | B147: 0 | C147: 807
A148: POLE2_ENST00000553805 | B148: 0 | C148: 807
A149: SUMO2_ENST00000578238 | B149: 0 | C149: 807
A150: ARSK_ENST00000504763 | B150: 0 | C150: 807
A151: PDLIM5_ENST00000512274 | B151: 0 | C151: 807
A152: FAM177A1_ENST00000554052 | B152: 0 | C152: 807
A153: TNFRSF12A_ENST00000573001 | B153: 0 | C153: 807
A154: ATP5F1D_ENST00000395633 | B154: 0 | C154: 807
A155: ZNF696_ENST00000520333 | B155: 0 | C155: 807
A156: MTUS1_ENST00000519066 | B156: 0 | C156: 807
A157: MPRIP_ENST00000395806 | B157: 0 | C157: 807
A158: MB_ENST00000401702 | B158: 0 | C158: 807
A159: ACYP2_ENST00000422521 | B159: 0 | C159: 807
A160: GHRL_ENST00000439975 | B160: 0 | C160: 807
A161: PPP2R5C_ENST00000556946 | B161: 0 | C161: 807
A162: BNC2_ENST00000471301 | B162: 0 | C162: 807
A163: DBP_ENST00000601104 | B163: 0 | C163: 807
A164: TCEANC2_ENST00000391366 | B164: 0 | C164: 807
A165: HAUS2 | B165: 0 | C165: 807
A166: PPP2R5C_ENST00000554442 | B166: 0 | C166: 807
A167: SPTSSA | B167: 0 | C167: 807
A168: HRK | B168: 0 | C168: 807
A169: GNG2 | B169: 0 | C169: 807
A170: PDE6G | B170: 0 | C170: 807
A171: TMEM179_ENST00000616017 | B171: 0 | C171: 807
A172: UQCRQ_ENST00000378667 | B172: 0 | C172: 807
A173: PDZK1IP1_ENST00000371885 | B173: 0 | C173: 807
A174: ZNF83_ENST00000597161 | B174: 0 | C174: 807
A175: RBSN_ENST00000449050 | B175: 0 | C175: 807
A176: GABARAP_ENST00000571129 | B176: 0 | C176: 807
A177: SLIRP_ENST00000557623 | B177: 0 | C177: 807
A178: ELOVL5_ENST00000370913 | B178: 0 | C178: 807
A179: CBWD3 | B179: 0 | C179: 807
A180: UQCRQ | B180: 0 | C180: 807
A181: AK7_ENST00000555570 | B181: 0 | C181: 807
A182: DNAJA4_ENST00000489435 | B182: 0 | C182: 807
A183: ZBED3 | B183: 0 | C183: 807
A184: TRMT112 | B184: 0 | C184: 807
A185: EXD3_ENST00000465160 | B185: 0 | C185: 807
A186: RPL36A | B186: 0 | C186: 807
A187: GNPTAB_ENST00000549165 | B187: 0 | C187: 807
A188: HIBCH_ENST00000410045 | B188: 0 | C188: 807
A189: IKZF2_ENST00000442445 | B189: 0 | C189: 807
A190: PRPSAP2_ENST00000628609 | B190: 0 | C190: 807
A191: ITM2C_ENST00000620962 | B191: 0 | C191: 807
A192: GABARAPL1_ENST00000629504 | B192: 0 | C192: 807
A193: PDE6G_ENST00000571004 | B193: 0 | C193: 807
A194: PDLIM5_ENST00000504489 | B194: 0 | C194: 807
A195: SCAF11_ENST00000395453 | B195: 0 | C195: 807
A196: NOMO2_ENST00000620440 | B196: 0 | C196: 807
A197: DIAPH1_ENST00000643312 | B197: 0 | C197: 807
A198: SUMO2 | B198: 0 | C198: 807
A199: MRGPRF_ENST00000320913 | B199: 0 | C199: 807
A200: ZNF175_ENST00000545217 | B200: 0 | C200: 807
... 1504 more rows

Sheet with_mutationMon Jul 13 2020
A1: Gene name | B1: Mutated samples | C1: Samples tested
A2: KRAS_ENST00000311936 | B2: 3357 | C2: 10546
A3: KRAS_ENST00000557334 | B3: 3216 | C3: 10546
A4: KRAS | B4: 3216 | C4: 10546
A5: KRAS_ENST00000556131 | B5: 3057 | C5: 10546
A6: TP53 | B6: 2792 | C6: 5463
A7: BRAF | B7: 2332 | C7: 17528
A8: TP53_ENST00000455263 | B8: 1736 | C8: 5463
A9: TP53_ENST00000617185 | B9: 1736 | C9: 5463
A10: TP53_ENST00000610292 | B10: 1736 | C10: 5463
A11: TP53_ENST00000413465 | B11: 1736 | C11: 5463
A12: TP53_ENST00000615910 | B12: 1736 | C12: 5463
A13: TP53_ENST00000359597 | B13: 1736 | C13: 5463
A14: TP53_ENST00000420246 | B14: 1736 | C14: 5463
A15: TP53_ENST00000445888 | B15: 1736 | C15: 5463
A16: TP53_ENST00000610538 | B16: 1736 | C16: 5463
A17: TP53_ENST00000622645 | B17: 1736 | C17: 5463
A18: TP53_ENST00000619485 | B18: 1736 | C18: 5463
A19: TP53_ENST00000620739 | B19: 1736 | C19: 5463
A20: TP53_ENST00000504290 | B20: 1674 | C20: 5463
A21: TP53_ENST00000510385 | B21: 1674 | C21: 5463
A22: TP53_ENST00000618944 | B22: 1674 | C22: 5463
A23: TP53_ENST00000504937 | B23: 1674 | C23: 5463
A24: TP53_ENST00000610623 | B24: 1674 | C24: 5463
A25: TP53_ENST00000619186 | B25: 1674 | C25: 5463
A26: APC | B26: 1632 | C26: 3120
A27: APC_ENST00000508376 | B27: 1504 | C27: 3120
A28: BRAF_ENST00000496384 | B28: 1173 | C28: 17528
A29: BRAF_ENST00000644969 | B29: 1173 | C29: 17528
A30: BRAF_ENST00000288602 | B30: 1173 | C30: 17528
A31: PIK3CA | B31: 537 | C31: 3442
A32: PIK3CA_ENST00000643187 | B32: 537 | C32: 3442
A33: PCDHA1_ENST00000394633 | B33: 384 | C33: 801
A34: PCDHA1 | B34: 384 | C34: 801
A35: TTN | B35: 378 | C35: 821
A36: TTN_ENST00000460472 | B36: 378 | C36: 821
A37: TTN_ENST00000342992 | B37: 378 | C37: 821
A38: TTN_ENST00000591111 | B38: 378 | C38: 821
A39: TTN_ENST00000359218 | B39: 377 | C39: 821
A40: TTN_ENST00000615779 | B40: 377 | C40: 821
A41: TTN_ENST00000342175 | B41: 377 | C41: 821
A42: PCDHA2 | B42: 371 | C42: 809
A43: PCDHA3 | B43: 360 | C43: 809
A44: PCDHGA1 | B44: 353 | C44: 821
A45: PCDHA4_ENST00000512229 | B45: 350 | C45: 809
A46: PCDHA4 | B46: 350 | C46: 809
A47: PCDHGA2 | B47: 346 | C47: 807
A48: PCDHA5 | B48: 339 | C48: 822
A49: PCDHA5_ENST00000529619 | B49: 339 | C49: 822
A50: PCDHGA3 | B50: 338 | C50: 821
A51: PCDHGB1 | B51: 327 | C51: 798
A52: PCDHA6 | B52: 326 | C52: 809
A53: PCDHA6_ENST00000527624 | B53: 326 | C53: 809
A54: PCDHGA4 | B54: 315 | C54: 798
A55: PCDHA7 | B55: 312 | C55: 809
A56: PCDHGB2 | B56: 307 | C56: 798
A57: PCDHGA5 | B57: 301 | C57: 798
A58: PCDHGB3 | B58: 282 | C58: 798
A59: PCDHA8 | B59: 281 | C59: 809
A60: SMAD4 | B60: 275 | C60: 2140
A61: FBXW7 | B61: 266 | C61: 1999
A62: PCDHA9 | B62: 264 | C62: 822
A63: PCDHGA6 | B63: 264 | C63: 798
A64: FBXW7_ENST00000281708 | B64: 257 | C64: 1999
A65: FBXW7_ENST00000603841 | B65: 257 | C65: 1999
A66: SMAD4_ENST00000398417 | B66: 252 | C66: 2140
A67: SMAD4_ENST00000588745 | B67: 251 | C67: 2140
A68: PCDHGA7 | B68: 248 | C68: 798
A69: FBXW7_ENST00000296555 | B69: 245 | C69: 1999
A70: FBXW7_ENST00000393956 | B70: 244 | C70: 1999
A71: FBXW7_ENST00000263981 | B71: 244 | C71: 1999
A72: PCDHGB4 | B72: 237 | C72: 798
A73: PCDHA10 | B73: 229 | C73: 808
A74: PCDHA10_ENST00000506939 | B74: 229 | C74: 808
A75: PCDHGA8 | B75: 227 | C75: 798
A76: SYNE1_ENST00000423061 | B76: 226 | C76: 883
A77: SYNE1 | B77: 226 | C77: 883
A78: SYNE1_ENST00000341594 | B78: 226 | C78: 883
A79: MUC16 | B79: 224 | C79: 891
A80: KMT2D | B80: 211 | C80: 1452
A81: NEB_ENST00000397345 | B81: 205 | C81: 821
A82: NEB_ENST00000409198 | B82: 205 | C82: 821
A83: NEB | B83: 205 | C83: 821
A84: NEB_ENST00000172853 | B84: 205 | C84: 821
A85: NEB_ENST00000427231 | B85: 205 | C85: 821
A86: NEB_ENST00000604864 | B86: 204 | C86: 821
A87: NEB_ENST00000603639 | B87: 204 | C87: 821
A88: PCDHA11 | B88: 202 | C88: 822
A89: PCDHGB5 | B89: 201 | C89: 798
A90: TCF7L2_ENST00000369397 | B90: 196 | C90: 1569
A91: TCF7L2_ENST00000534894 | B91: 195 | C91: 1569
A92: TCF7L2_ENST00000536810 | B92: 195 | C92: 1569
A93: TCF7L2_ENST00000542695 | B93: 195 | C93: 1569
A94: TCF7L2 | B94: 195 | C94: 1569
A95: TCF7L2_ENST00000543371 | B95: 195 | C95: 1569
A96: TCF7L2_ENST00000355717 | B96: 195 | C96: 1569
A97: TCF7L2_ENST00000355995 | B97: 195 | C97: 1569
A98: TCF7L2_ENST00000538897 | B98: 195 | C98: 1569
A99: TCF7L2_ENST00000545257 | B99: 194 | C99: 1569
A100: TCF7L2_ENST00000629706 | B100: 193 | C100: 1569
A101: PCDHGA9 | B101: 191 | C101: 798
A102: ATM | B102: 189 | C102: 1909
A103: TCF7L2_ENST00000352065 | B103: 189 | C103: 1569
A104: TCF7L2_ENST00000369395 | B104: 189 | C104: 1569
A105: ACVR2A | B105: 189 | C105: 1275
A106: PCDHGB6 | B106: 186 | C106: 798
A107: KMT2C | B107: 185 | C107: 1628
A108: ATM_ENST00000452508 | B108: 185 | C108: 1909
A109: CTNNB1 | B109: 183 | C109: 2994
A110: KMT2C_ENST00000355193 | B110: 182 | C110: 1628
A111: FAT3_ENST00000409404 | B111: 181 | C111: 808
A112: ARID1A | B112: 180 | C112: 1969
A113: ARID1A_ENST00000430799 | B113: 179 | C113: 1969
A114: ARID1A_ENST00000457599 | B114: 179 | C114: 1969
A115: FAT3 | B115: 178 | C115: 808
A116: RNF43 | B116: 177 | C116: 1528
A117: OBSCN_ENST00000366707 | B117: 176 | C117: 824
A118: OBSCN | B118: 176 | C118: 824
A119: OBSCN_ENST00000422127 | B119: 176 | C119: 824
A120: OBSCN_ENST00000636875 | B120: 176 | C120: 824
A121: FAT4 | B121: 174 | C121: 832
A122: PCDHA12 | B122: 174 | C122: 799
A123: PCDHGA10 | B123: 169 | C123: 821
A124: ARID1A_ENST00000374152 | B124: 168 | C124: 1969
A125: CTNNB1_ENST00000453024 | B125: 167 | C125: 2994
A126: CTNNB1_ENST00000642315 | B126: 167 | C126: 2994
A127: CTNNB1_ENST00000646116 | B127: 167 | C127: 2994
A128: CTNNB1_ENST00000349496 | B128: 167 | C128: 2994
A129: CTNNB1_ENST00000645210 | B129: 167 | C129: 2994
A130: CTNNB1_ENST00000643031 | B130: 167 | C130: 2994
A131: CTNNB1_ENST00000644867 | B131: 167 | C131: 2994
A132: CTNNB1_ENST00000643977 | B132: 167 | C132: 2994
A133: CTNNB1_ENST00000646174 | B133: 167 | C133: 2994
A134: CTNNB1_ENST00000645982 | B134: 167 | C134: 2994
A135: CTNNB1_ENST00000642426 | B135: 167 | C135: 2994
A136: CTNNB1_ENST00000643992 | B136: 167 | C136: 2994
A137: CTNNB1_ENST00000644678 | B137: 167 | C137: 2994
A138: CTNNB1_ENST00000405570 | B138: 167 | C138: 2994
A139: CTNNB1_ENST00000642886 | B139: 167 | C139: 2994
A140: CTNNB1_ENST00000441708 | B140: 167 | C140: 2994
A141: CTNNB1_ENST00000647264 | B141: 167 | C141: 2994
A142: CTNNB1_ENST00000396183 | B142: 167 | C142: 2994
A143: CTNNB1_ENST00000433400 | B143: 167 | C143: 2994
A144: CTNNB1_ENST00000642992 | B144: 167 | C144: 2994
A145: CTNNB1_ENST00000642248 | B145: 167 | C145: 2994
A146: CTNNB1_ENST00000645900 | B146: 167 | C146: 2994
A147: CTNNB1_ENST00000645493 | B147: 167 | C147: 2994
A148: CTNNB1_ENST00000646369 | B148: 167 | C148: 2994
A149: CTNNB1_ENST00000642836 | B149: 167 | C149: 2994
A150: CTNNB1_ENST00000642986 | B150: 167 | C150: 2994
A151: CTNNB1_ENST00000646725 | B151: 167 | C151: 2994
A152: CTNNB1_ENST00000646381 | B152: 167 | C152: 2994
A153: CTNNB1_ENST00000431914 | B153: 167 | C153: 2994
A154: CTNNB1_ENST00000643541 | B154: 167 | C154: 2994
A155: CTNNB1_ENST00000645276 | B155: 167 | C155: 2994
A156: CTNNB1_ENST00000643297 | B156: 167 | C156: 2994
A157: CTNNB1_ENST00000644524 | B157: 167 | C157: 2994
A158: CTNNB1_ENST00000647390 | B158: 167 | C158: 2994
A159: LRP1B | B159: 167 | C159: 949
A160: CTNNB1_ENST00000450969 | B160: 167 | C160: 2994
A161: CTNNB1_ENST00000644873 | B161: 167 | C161: 2994
A162: CTNNB1_ENST00000396185 | B162: 167 | C162: 2994
A163: CTNNB1_ENST00000644138 | B163: 165 | C163: 2994
A164: RNF43_ENST00000581868 | B164: 164 | C164: 1528
A165: RNF43_ENST00000407977 | B165: 164 | C165: 1528
A166: RNF43_ENST00000577716 | B166: 164 | C166: 1528
A167: RNF43_ENST00000583753 | B167: 164 | C167: 1528
A168: SOX9 | B168: 159 | C168: 1433
A169: SOX9_ENST00000645356 | B169: 159 | C169: 1433
A170: RYR2 | B170: 158 | C170: 849
A171: OBSCN_ENST00000284548 | B171: 158 | C171: 824
A172: RYR2_ENST00000360064 | B172: 157 | C172: 849
A173: RNF43_ENST00000577625 | B173: 157 | C173: 1528
A174: PTEN | B174: 154 | C174: 2186
A175: PTPRS_ENST00000353284 | B175: 151 | C175: 1421
A176: PTPRS_ENST00000588012 | B176: 151 | C176: 1421
A177: PTPRS_ENST00000592099 | B177: 151 | C177: 1421
A178: DST | B178: 151 | C178: 866
A179: PTPRS_ENST00000262963 | B179: 151 | C179: 1421
A180: PTPRS | B180: 151 | C180: 1421
A181: CSMD3 | B181: 150 | C181: 953
A182: PCDHGB7 | B182: 149 | C182: 798
A183: DST_ENST00000421834 | B183: 149 | C183: 866
A184: CSMD3_ENST00000455883 | B184: 149 | C184: 953
A185: ZFHX3 | B185: 149 | C185: 1397
A186: ZFHX4 | B186: 149 | C186: 821
A187: ZFHX4_ENST00000518282 | B187: 149 | C187: 821
A188: DST_ENST00000370788 | B188: 149 | C188: 866
A189: DST_ENST00000361203 | B189: 148 | C189: 866
A190: ZFHX3_ENST00000397992 | B190: 148 | C190: 1397
A191: ZFHX3_ENST00000268489 | B191: 148 | C191: 1397
A192: ROBO2 | B192: 147 | C192: 821
A193: FAT1 | B193: 146 | C193: 1482
A194: DST_ENST00000244364 | B194: 146 | C194: 866
A195: TTN_ENST00000360870 | B195: 145 | C195: 821
A196: CSMD3_ENST00000343508 | B196: 144 | C196: 953
A197: NF1 | B197: 142 | C197: 1612
A198: NF1_ENST00000356175 | B198: 141 | C198: 1612
A199: FAT1_ENST00000614102 | B199: 141 | C199: 1482
A200: ACVR2A_ENST00000404590 | B200: 141 | C200: 1275
... 4300 more rows
